fUSD/lending_fUSD_20250306
["ID","MTS","AMOUNT","RATE_DAILY","PERIOD"]
[355521341,1741235439047,-572.63,0.00011495,2]
[355521342,1741235439058,-508.27485847,0.00011495,2]
[355521343,1741235439068,-503.26500093,0.00011495,2]
[355521344,1741235439078,-502.39835252,0.00011495,2]
[355521345,1741235439088,-540.9906643,0.00011495,2]
[355521346,1741235439098,-500.0,0.00011495,2]
[355521347,1741235439108,-500.0,0.00011495,2]
[355521348,1741235439117,-500.0,0.00011495,2]
[355521349,1741235439127,-500.0,0.00011495,2]
[355521350,1741235439137,-524.29611958,0.00011495,2]
[355521351,1741235439148,-500.0,0.00011495,2]
[355521352,1741235439158,-500.0,0.00011495,2]
[355521353,1741235439168,-500.0,0.00011495,2]
[355521354,1741235439178,-500.0,0.00011495,2]
[355521355,1741235439188,-500.0,0.00011495,2]
[355521356,1741235439198,-504.02875246,0.00011495,2]
[355521357,1741235439208,-500.0,0.00011495,2]
[355521358,1741235439218,-500.0,0.00011495,2]
[355521359,1741235439228,-500.0,0.00011495,2]
[355521360,1741235439237,-500.0,0.00011495,2]
[355521361,1741235439247,-500.0,0.00011495,2]
[355521362,1741235439257,-500.0,0.00011495,2]
[355521363,1741235439268,-500.0,0.00011495,2]
[355521364,1741235439277,-500.0,0.00011495,2]
[355521365,1741235439287,-505.7887171,0.00011495,2]
[355521366,1741235439297,-500.0,0.00011495,2]
[355521367,1741235439307,-506.09171991,0.00011495,2]
[355521368,1741235439317,-505.4405557,0.00011495,2]
[355521369,1741235439327,-500.0,0.00011495,2]
[355521370,1741235439337,-500.0,0.00011495,2]
[355521371,1741235439347,-500.0,0.00011495,2]
[355521372,1741235439357,-500.0,0.00011495,2]
[355521373,1741235439367,-500.0,0.00011495,2]
[355521374,1741235439376,-500.0,0.00011495,2]
[355521375,1741235439387,-500.0,0.00011495,2]
[355521376,1741235439398,-500.0,0.00011495,2]
[355521377,1741235439407,-500.0,0.00011495,2]
[355521378,1741235439417,-505.9529074,0.00011495,2]
[355521379,1741235439427,-500.0,0.00011495,2]
[355521380,1741235439437,-500.0,0.00011495,2]
[355521381,1741235439447,-500.0,0.00011495,2]
[355521382,1741235439457,-500.0,0.00011495,2]
[355521383,1741235439467,-500.0,0.00011495,2]
[355521384,1741235439477,-500.0,0.00011495,2]
[355521385,1741235439486,-500.0,0.00011495,2]
[355521386,1741235439497,-500.0,0.00011495,2]
[355521387,1741235439506,-1544.85,0.00011495,2]
[355521388,1741235439518,-500.0,0.00011495,2]
[355521389,1741235439528,-500.0,0.00011495,2]
[355521390,1741235439538,-500.0,0.00011495,2]
[355521391,1741235439549,-500.0,0.00011495,2]
[355521392,1741235439559,-500.0,0.00011495,2]
[355521393,1741235439569,-500.0,0.00011495,2]
[355521394,1741235439579,-727.5,0.00011495,2]
[355521395,1741235439589,-500.0,0.00011495,2]
[355521396,1741235439599,-512.1752286,0.00011495,2]
[355521397,1741235439609,-503.57079232,0.00011495,2]
[355521398,1741235439619,-501.72145504,0.00011495,2]
[355521399,1741235439628,-4998.74,0.00011495,2]
[355521400,1741235439638,-500.0,0.00011495,2]
[355521401,1741235439648,-678.45,0.00011495,2]
[355521402,1741235439658,-500.0,0.00011495,2]
[355521403,1741235439668,-748.6,0.00011495,2]
[355521404,1741235439677,-509.05188067,0.00011495,2]
[355521405,1741235439687,-500.0,0.00011495,2]
[355521406,1741235439696,-1635.3,0.00011495,2]
[355521407,1741235439706,-500.0,0.00011495,2]
[355521408,1741235439715,-509.45570118,0.00011495,2]
[355521409,1741235439725,-704.92,0.00011495,2]
[355521410,1741235439734,-512.96472043,0.00011495,2]
[355521411,1741235439743,-500.0,0.00011495,2]
[355521412,1741235439752,-500.0,0.00011495,2]
[355521413,1741235439762,-540.71,0.00011495,2]
[355521414,1741235439771,-889.7,0.00011495,2]
[355521415,1741235439781,-513.19653492,0.00011495,2]
[355521417,1741235439790,-1021.21,0.00011495,2]
[355521418,1741235439800,-500.0,0.00011495,2]
[355521419,1741235439809,-500.0,0.00011495,2]
[355521420,1741235439824,-500.0,0.00011495,2]
[355521421,1741235439834,-481.36170846,0.00011495,2]
[355521422,1741235439843,-500.0,0.00011495,2]
[355521423,1741235439853,-500.0,0.00011495,2]
[355521424,1741235439863,-500.0,0.00011495,2]
[355521425,1741235439873,-382.49191535,0.00011495,2]
[355521426,1741235440155,-887.86808465,0.00011495,2]
[355521427,1741235440165,-471.71917224,0.00011495,2]
[355521428,1741235441129,-366.14315867,0.00011137,2]
[355521429,1741235441323,-133.85684133,0.00011137,2]
[355521430,1741235441333,-209.01315869,0.000114,2]
[355521431,1741235441378,-1531.76703172,0.000114,2]
[355521432,1741235441388,-484.50540597,0.00011411,2]
[355521433,1741235441397,-500.0,0.00011494,2]
[355521434,1741235441406,-28.28082776,0.00011495,2]
[355521435,1741235441415,-924.53,0.00011495,2]
[355521436,1741235441427,-500.0,0.00011495,2]
[355521437,1741235441441,-509.04761038,0.00011495,2]
[355521438,1741235441450,-225.05133034,0.00011495,2]
[355521439,1741235441459,-500.0,0.00011495,2]
[355521440,1741235441468,-500.0,0.00011495,2]
[355521441,1741235441476,-500.0,0.00011495,2]
[355521442,1741235441484,-526.1118935,0.00011495,2]
[355521443,1741235441492,-821.72,0.00011495,2]
[355521444,1741235441500,-500.0,0.00011495,2]
[355521445,1741235441508,-1415.76,0.00011495,2]
[355521446,1741235441517,-500.0,0.00011495,2]
[355521447,1741235441524,-693.69,0.00011495,2]
[355521448,1741235441533,-2619.03,0.00011495,2]
[355521449,1741235441542,-8239.58549908,0.00011495,2]
[355521450,1741235441556,-615.76042043,0.00011495,2]
[355521466,1741235442980,-500.0,0.00011137,2]
[355521467,1741235442990,-500.0,0.00011411,2]
[355521468,1741235442999,-1863.49408049,0.00011495,2]
[355521469,1741235443009,-500.0,0.00011495,2]
[355521470,1741235443020,-500.0,0.00011495,2]
[355521471,1741235443029,-500.0,0.00011495,2]
[355521472,1741235443038,-154.63361698,0.00011495,2]
[355521478,1741235443504,-457.86638302,0.00011495,2]
[355521479,1741235443513,-500.0,0.00011495,2]
[355521480,1741235443524,-500.0,0.00011495,2]
[355521481,1741235443533,-500.0,0.00011495,2]
[355521482,1741235443542,-500.0,0.00011495,2]
[355521483,1741235443551,-500.0,0.00011495,2]
[355521484,1741235443560,-500.0,0.00011495,2]
[355521485,1741235443569,-518.4982936,0.00011495,2]
[355521486,1741235443578,-500.0,0.00011495,2]
[355521487,1741235443587,-500.0,0.00011495,2]
[355521488,1741235443596,-901.5,0.00011495,2]
[355521489,1741235443606,-2800.84,0.00011495,2]
[355521490,1741235443615,-568.25,0.00011495,2]
[355521491,1741235443624,-500.0,0.00011495,2]
[355521492,1741235443633,-500.0,0.00011495,2]
[355521493,1741235443643,-500.0,0.00011495,2]
[355521495,1741235443652,-2496.49,0.00011495,2]
[355521496,1741235443661,-989.3,0.00011495,2]
[355521497,1741235443670,-1596.02,0.00011495,2]
[355521498,1741235443679,-500.0,0.00011495,2]
[355521499,1741235443689,-500.0,0.00011495,2]
[355521500,1741235443699,-842.1,0.00011495,2]
[355521501,1741235443708,-11000.69,0.00011495,2]
[355521502,1741235443718,-500.0,0.00011495,2]
[355521503,1741235443727,-500.0,0.00011495,2]
[355521504,1741235443736,-521.97,0.00011495,2]
[355521505,1741235443746,-500.0,0.00011495,2]
[355521506,1741235443755,-500.0,0.00011495,2]
[355521507,1741235443765,-500.0,0.00011495,2]
[355521508,1741235443774,-500.0,0.00011495,2]
[355521509,1741235443784,-500.0,0.00011495,2]
[355521510,1741235443793,-1337.96,0.00011495,2]
[355521511,1741235443803,-500.0,0.00011495,2]
[355521512,1741235443812,-1055.76,0.00011495,2]
[355521513,1741235443824,-500.0,0.00011495,2]
[355521514,1741235443834,-510.39,0.00011495,2]
[355521515,1741235443843,-500.0,0.00011495,2]
[355521516,1741235443852,-500.0,0.00011495,2]
[355521517,1741235443862,-500.0,0.00011495,2]
[355521518,1741235443871,-500.44,0.00011495,2]
[355521519,1741235443881,-508.99617316,0.00011495,2]
[355521520,1741235443890,-500.0,0.00011495,2]
[355521521,1741235443899,-754.77,0.00011495,2]
[355521522,1741235443911,-509.84693253,0.00011495,2]
[355521523,1741235443921,-1890.61,0.00011495,2]
[355521524,1741235443932,-2188.76,0.00011495,2]
[355521525,1741235443940,-500.0,0.00011495,2]
[355521526,1741235443950,-500.0,0.00011495,2]
[355521527,1741235443959,-500.0,0.00011495,2]
[355521528,1741235443968,-500.0,0.00011495,2]
[355521529,1741235443978,-514.83820831,0.00011495,2]
[355521530,1741235443987,-637.39,0.00011495,2]
[355521531,1741235443997,-500.0,0.00011495,2]
[355521532,1741235444007,-1217.21,0.00011495,2]
[355521533,1741235444016,-163.66793092,0.00011495,2]
[355521534,1741235444026,-631.99,0.00011495,2]
[355521535,1741235444035,-1000.0,0.00011495,2]
[355521536,1741235444045,-500.0,0.00011495,2]
[355521537,1741235444055,-500.38,0.00011495,2]
[355521538,1741235444066,-500.0,0.00011495,2]
[355521539,1741235444075,-1966.43,0.00011495,2]
[355521540,1741235444085,-500.0,0.00011495,2]
[355521541,1741235444095,-500.0,0.00011495,2]
[355521542,1741235444104,-528.81,0.00011495,2]
[355521543,1741235444113,-582.15463993,0.00011495,2]
[355521544,1741235444123,-505.1243642,0.00011495,2]
[355521545,1741235444132,-507.11102598,0.00011495,2]
[355521546,1741235444142,-500.0,0.00011495,2]
[355521547,1741235444151,-3238.29,0.00011495,2]
[355521548,1741235444161,-500.0,0.00011495,2]
[355521549,1741235444171,-500.0,0.00011495,2]
[355521550,1741235444181,-1391.56,0.00011495,2]
[355521551,1741235444190,-500.0,0.00011495,2]
[355521552,1741235444200,-528.14,0.00011495,2]
[355521553,1741235444210,-500.0,0.00011495,2]
[355521554,1741235444220,-504.17877027,0.00011495,2]
[355521555,1741235444230,-662.31,0.00011495,2]
[355521556,1741235444240,-500.0,0.00011495,2]
[355521557,1741235444249,-500.0,0.00011495,2]
[355521558,1741235444259,-500.0,0.00011495,2]
[355521559,1741235444268,-929.02,0.00011495,2]
[355521560,1741235444279,-987.36,0.00011495,2]
[355521561,1741235444289,-269.05652491,0.00011495,2]
[355521562,1741235444298,-925.94,0.00011495,2]
[355521563,1741235444307,-500.0,0.00011495,2]
[355521564,1741235444317,-500.0,0.00011495,2]
[355521565,1741235444326,-500.0,0.00011495,2]
[355521566,1741235444336,-500.0,0.00011495,2]
[355521567,1741235444346,-500.0,0.00011495,2]
[355521568,1741235444355,-309.79700163,0.00011495,2]
[355521569,1741235444365,-500.0,0.00011495,2]
[355521570,1741235444374,-567.01,0.00011495,2]
[355521571,1741235444383,-500.0,0.00011495,2]
[355521572,1741235444393,-743.18,0.00011495,2]
[355521573,1741235444403,-500.0,0.00011495,2]
[355521574,1741235444412,-500.0,0.00011495,2]
[355521575,1741235444422,-500.0,0.00011495,2]
[355521576,1741235444431,-736.49,0.00011495,2]
[355521577,1741235444441,-500.0,0.00011495,2]
[355521578,1741235444450,-500.0,0.00011495,2]
[355521579,1741235444459,-500.0,0.00011495,2]
[355521580,1741235444468,-500.0,0.00011495,2]
[355521581,1741235444477,-21.41734785,0.00011495,2]
[355521582,1741235446039,-500.0,0.00011395,2]
[355521583,1741235446152,-818.19641601,0.00011395,2]
[355521584,1741235446164,-664.60258384,0.00011395,2]
[355521596,1741235448589,1000.0,9.272e-05,2]
[355521597,1741235492852,150.0,9.681e-05,2]
[355521599,1741235716316,153.57360033,0.0001,2]
[355521600,1741236458415,187.78,8.332e-05,2]
[355521601,1741236500511,164.07,0.00010242,2]
[355521602,1741236519721,158.82,0.00010079,2]
[355521609,1741236632409,-150.0,0.00010328,2]
[355521610,1741236632419,-162.63833889,0.0001037,2]
[355521611,1741236632428,-1000.0,0.00010385,2]
[355521612,1741236632437,-150.0,0.00010404,2]
[355521613,1741236632447,-152.42,0.00010449,2]
[355521614,1741236632457,-150.0,0.00010458,2]
[355521615,1741236632466,-162.63833889,0.00010469,2]
[355521616,1741236632476,-150.0,0.0001047,2]
[355521617,1741236632485,-160.85,0.00010497,2]
[355521618,1741236632494,-150.0,0.00010544,2]
[355521619,1741236632504,-152.42,0.00010569,2]
[355521620,1741236632515,-300.0,0.00010595,2]
[355521622,1741236632525,-187.78,0.00010596,2]
[355521624,1741236632534,-7513.22296313,0.00010596,2]
[355521626,1741236632544,-150.0,0.00010643,2]
[355521628,1741236632553,-150.0,0.00010681,2]
[355521630,1741236632562,-152.42,0.00010688,2]
[355521632,1741236632571,-150.0,0.00010699,2]
[355521634,1741236632580,-245.15318133,0.00010708,2]
[355521636,1741236632589,-150.0,0.00010738,2]
[355521638,1741236632599,-150.0,0.00010744,2]
[355521640,1741236632608,-150.0,0.00010767,2]
[355521642,1741236632618,-150.0,0.00010789,2]
[355521644,1741236632627,-152.42,0.00010808,2]
[355521646,1741236632636,-152.42,0.00010927,2]
[355521648,1741236632646,-550.0,0.00011,2]
[355521650,1741236632655,-152.42,0.00011047,2]
[355521652,1741236632665,-150.0,0.00011077,2]
[355521653,1741236632674,-150.0,0.00011097,2]
[355521655,1741236632683,-7889.95357122,0.00011099,2]
[355521657,1741236632692,-7889.95357118,0.00011099,2]
[355521659,1741236632702,-7889.95357118,0.00011118,2]
[355521661,1741236632711,-150.0,0.00011119,2]
[355521663,1741236632719,-150.0,0.00011136,2]
[355521665,1741236632728,-500.0,0.00011137,2]
[355521668,1741236632738,-500.0,0.00011137,2]
[355521671,1741236632747,-312.49,0.00011137,2]
[355521674,1741236632756,-500.0,0.00011137,2]
[355521677,1741236632765,-500.0,0.00011137,2]
[355521680,1741236632774,-500.0,0.00011137,2]
[355521683,1741236632784,-503.42529511,0.00011137,2]
[355521686,1741236632793,-512.01554018,0.00011137,2]
[355521689,1741236632802,-500.0,0.00011137,2]
[355521692,1741236632811,-517.34707657,0.00011137,2]
[355521695,1741236632820,-500.0,0.00011137,2]
[355521698,1741236632829,-322.11,0.00011137,2]
[355521701,1741236632838,-540.67645904,0.00011137,2]
[355521704,1741236632848,-587.58,0.00011137,2]
[355521707,1741236632857,-507.24634576,0.00011137,2]
[355521710,1741236632866,-508.65178888,0.00011137,2]
[355521713,1741236632875,-515.39678325,0.00011137,2]
[355521716,1741236632884,-513.37434523,0.00011137,2]
[355521719,1741236632893,-544.43,0.00011137,2]
[355521722,1741236632902,-517.34545024,0.00011137,2]
[355521725,1741236632911,-505.12235688,0.00011137,2]
[355521728,1741236632920,-503.43661815,0.00011137,2]
[355521731,1741236632929,-367.6398687,0.00011137,2]
[355521734,1741236632939,-501.17301805,0.00011137,2]
[355521736,1741236632948,-500.0,0.00011137,2]
[355521738,1741236632958,-498.60937822,0.00011137,2]
[355521740,1741236632967,-500.0,0.00011137,2]
[355521742,1741236632975,-472.67169169,0.00011137,2]
[355521744,1741236632985,-500.0,0.00011137,2]
[355521746,1741236632994,-509.06312836,0.00011137,2]
[355521748,1741236633003,-503.57596349,0.00011137,2]
[355521750,1741236633012,-342.05889133,0.00011137,2]
[355521752,1741236633022,-507.86835516,0.00011137,2]
[355521754,1741236633031,-508.20236394,0.00011137,2]
[355521756,1741236633041,-500.0,0.00011137,2]
[355521758,1741236633051,-500.0,0.00011137,2]
[355521760,1741236633060,-505.93021363,0.00011137,2]
[355521762,1741236633071,-619.7,0.00011137,2]
[355521764,1741236633080,-500.0,0.00011137,2]
[355521766,1741236633089,-500.0,0.00011137,2]
[355521768,1741236633099,-500.0,0.00011137,2]
[355521770,1741236633109,-500.0,0.00011137,2]
[355521772,1741236633119,-507.91463527,0.00011137,2]
[355521774,1741236633129,-512.64846379,0.00011137,2]
[355521776,1741236633138,-270.71,0.00011137,2]
[355521778,1741236633148,-513.32762091,0.00011137,2]
[355521780,1741236633158,-507.50499646,0.00011137,2]
[355521782,1741236633168,-507.49554583,0.00011137,2]
[355521784,1741236633178,-497.03083849,0.00011137,2]
[355521786,1741236633187,-500.0,0.00011137,2]
[355521788,1741236633198,-500.0,0.00011137,2]
[355521790,1741236633211,-512.06144556,0.00011137,2]
[355521792,1741236633221,-500.0,0.00011137,2]
[355521794,1741236633231,-503.90259313,0.00011137,2]
[355521796,1741236633240,-500.0,0.00011137,2]
[355521798,1741236633251,-500.0,0.00011137,2]
[355521800,1741236633260,-513.84717294,0.00011137,2]
[355521802,1741236633271,-542.32,0.00011137,2]
[355521804,1741236633282,-500.0,0.00011137,2]
[355521806,1741236633292,-504.08981176,0.00011137,2]
[355521808,1741236633302,-500.0,0.00011137,2]
[355521810,1741236633312,-510.73752316,0.00011137,2]
[355521812,1741236633322,-500.0,0.00011137,2]
[355521814,1741236633331,-516.05333678,0.00011137,2]
[355521816,1741236633341,-500.0,0.00011137,2]
[355521818,1741236633352,-500.0,0.00011137,2]
[355521820,1741236633362,-517.16460987,0.00011137,2]
[355521823,1741236633372,-500.0,0.00011137,2]
[355521825,1741236633382,-500.0,0.00011137,2]
[355521827,1741236633391,-627.67262366,0.00011137,2]
[355521829,1741236633400,-500.0,0.00011137,2]
[355521831,1741236633410,-500.0,0.00011137,2]
[355521833,1741236633419,-491.68,0.00011137,2]
[355521835,1741236633428,-500.0,0.00011137,2]
[355521837,1741236633437,-500.0,0.00011137,2]
[355521839,1741236633447,-507.25,0.00011137,2]
[355521841,1741236633456,-539.5,0.00011137,2]
[355521843,1741236633465,-612.67,0.00011137,2]
[355521845,1741236633475,-500.0,0.00011137,2]
[355521847,1741236633484,-559.2,0.00011137,2]
[355521849,1741236633494,-506.71297144,0.00011137,2]
[355521851,1741236633503,-500.0,0.00011137,2]
[355521853,1741236633513,-500.0,0.00011137,2]
[355521855,1741236633522,-500.0,0.00011137,2]
[355521857,1741236633532,-500.0,0.00011137,2]
[355521859,1741236633543,-508.00486763,0.00011137,2]
[355521861,1741236633553,-517.64243087,0.00011137,2]
[355521863,1741236633562,-500.0,0.00011137,2]
[355521865,1741236633572,-500.0,0.00011137,2]
[355521867,1741236633581,-500.0,0.00011137,2]
[355521869,1741236633590,-500.0,0.00011137,2]
[355521871,1741236633599,-578.03902153,0.00011137,2]
[355521873,1741236633609,-500.0,0.00011137,2]
[355521874,1741236633619,-500.0,0.00011137,2]
[355521876,1741236633628,-500.0,0.00011137,2]
[355521879,1741236633637,-500.0,0.00011137,2]
[355521881,1741236633647,-500.0,0.00011137,2]
[355521883,1741236633657,-500.0,0.00011137,2]
[355521885,1741236633667,-507.89632672,0.00011137,2]
[355521887,1741236633677,-500.0,0.00011137,2]
[355521888,1741236633687,-500.0,0.00011137,2]
[355521889,1741236633696,-500.0,0.00011137,2]
[355521890,1741236633706,-500.0,0.00011137,2]
[355521891,1741236633715,-500.0,0.00011137,2]
[355521892,1741236633725,-500.0,0.00011137,2]
[355521893,1741236633734,-500.0,0.00011137,2]
[355521894,1741236633744,-500.0,0.00011137,2]
[355521895,1741236633753,-500.0,0.00011137,2]
[355521896,1741236633762,-500.0,0.00011137,2]
[355521897,1741236633773,-500.0,0.00011137,2]
[355521898,1741236633783,-500.0,0.00011137,2]
[355521899,1741236633792,-507.44455637,0.00011137,2]
[355521900,1741236633801,-500.0,0.00011137,2]
[355521901,1741236633811,-500.0,0.00011137,2]
[355521903,1741236633821,-500.0,0.00011137,2]
[355521905,1741236633831,-506.31139245,0.00011137,2]
[355521907,1741236633840,-522.99121495,0.00011137,2]
[355521909,1741236633849,-616.34,0.00011137,2]
[355521911,1741236633859,-510.41712561,0.00011137,2]
[355521913,1741236633869,-509.57647298,0.00011137,2]
[355521915,1741236633878,-500.0,0.00011137,2]
[355521917,1741236633888,-500.0,0.00011137,2]
[355521919,1741236633898,-503.90462919,0.00011137,2]
[355521921,1741236633907,-500.0,0.00011137,2]
[355521923,1741236633916,-507.81843147,0.00011137,2]
[355521925,1741236633926,-500.0,0.00011137,2]
[355521927,1741236633935,-500.0,0.00011137,2]
[355521929,1741236633944,-505.92744724,0.00011137,2]
[355521931,1741236633954,-500.0,0.00011137,2]
[355521933,1741236633963,-500.0,0.00011137,2]
[355521935,1741236633973,-500.0,0.00011137,2]
[355521937,1741236633982,-500.0,0.00011137,2]
[355521939,1741236633992,-500.0,0.00011137,2]
[355521941,1741236634001,-500.0,0.00011137,2]
[355521943,1741236634010,-500.0,0.00011137,2]
[355521945,1741236634022,-500.0,0.00011137,2]
[355521947,1741236634031,-500.0,0.00011137,2]
[355521949,1741236634041,-500.0,0.00011137,2]
[355521951,1741236634051,-500.0,0.00011137,2]
[355521953,1741236634061,-500.0,0.00011137,2]
[355521955,1741236634071,-500.0,0.00011137,2]
[355521957,1741236634081,-416.04,0.00011137,2]
[355521959,1741236634091,-500.0,0.00011137,2]
[355521961,1741236634100,-500.0,0.00011137,2]
[355521963,1741236634110,-500.0,0.00011137,2]
[355521965,1741236634119,-500.0,0.00011137,2]
[355521967,1741236634129,-500.0,0.00011137,2]
[355521969,1741236634139,-500.0,0.00011137,2]
[355521971,1741236634148,-613.38,0.00011137,2]
[355521973,1741236634158,-500.0,0.00011137,2]
[355521975,1741236634167,-500.0,0.00011137,2]
[355521977,1741236634177,-500.0,0.00011137,2]
[355521979,1741236634187,-611.6,0.00011137,2]
[355521981,1741236634196,-510.60077269,0.00011137,2]
[355521983,1741236634209,-524.87,0.00011137,2]
[355521985,1741236634218,-500.0,0.00011137,2]
[355521987,1741236634227,-643.53,0.00011137,2]
[355521989,1741236634237,-500.0,0.00011137,2]
[355521991,1741236634249,-500.0,0.00011137,2]
[355521993,1741236634260,-500.0,0.00011137,2]
[355521995,1741236634271,-518.23875421,0.00011137,2]
[355521997,1741236634281,-507.26057537,0.00011137,2]
[355521999,1741236634291,-500.0,0.00011137,2]
[355522001,1741236634302,-500.0,0.00011137,2]
[355522003,1741236634312,-500.0,0.00011137,2]
[355522005,1741236634322,-500.0,0.00011137,2]
[355522007,1741236634332,-506.09521206,0.00011137,2]
[355522009,1741236634342,-500.0,0.00011137,2]
[355522011,1741236634352,-500.0,0.00011137,2]
[355522013,1741236634362,-500.0,0.00011137,2]
[355522015,1741236634372,-500.0,0.00011137,2]
[355522017,1741236634381,-508.08529777,0.00011137,2]
[355522019,1741236634391,-500.0,0.00011137,2]
[355522021,1741236634400,-500.0,0.00011137,2]
[355522023,1741236634410,-500.99766903,0.00011137,2]
[355522025,1741236634420,-500.0,0.00011137,2]
[355522027,1741236634429,-500.0,0.00011137,2]
[355522028,1741236634439,-558.77850137,0.00011137,2]
[355522031,1741236634449,-500.0,0.00011137,2]
[355522032,1741236634458,-560.19,0.00011137,2]
[355522034,1741236634467,-500.0,0.00011137,2]
[355522036,1741236634477,-595.97190967,0.00011137,2]
[355522038,1741236634487,-500.0,0.00011137,2]
[355522040,1741236634496,-567.62,0.00011137,2]
[355522042,1741236634506,-500.0,0.00011137,2]
[355522044,1741236634516,-500.0,0.00011137,2]
[355522046,1741236634525,-691.15,0.00011137,2]
[355522048,1741236634535,-500.0,0.00011137,2]
[355522050,1741236634544,-500.0,0.00011137,2]
[355522052,1741236634553,-365.64,0.00011137,2]
[355522054,1741236634562,-500.0,0.00011137,2]
[355522056,1741236634571,-500.0,0.00011137,2]
[355522058,1741236634584,-500.0,0.00011137,2]
[355522061,1741236634595,-500.0,0.00011137,2]
[355522063,1741236634607,-554.17658311,0.00011137,2]
[355522065,1741236634619,-500.0,0.00011137,2]
[355522068,1741236634631,-500.0,0.00011137,2]
[355522070,1741236634643,-500.0,0.00011137,2]
[355522072,1741236634654,-500.0,0.00011137,2]
[355522074,1741236634664,-500.0,0.00011137,2]
[355522076,1741236634675,-500.0,0.00011137,2]
[355522079,1741236634687,-967.27,0.00011137,2]
[355522081,1741236634699,-500.0,0.00011137,2]
[355522083,1741236634710,-785.55,0.00011137,2]
[355522085,1741236634722,-500.0,0.00011137,2]
[355522087,1741236634734,-500.0,0.00011137,2]
[355522089,1741236634746,-500.0,0.00011137,2]
[355522092,1741236634758,-500.0,0.00011137,2]
[355522094,1741236634770,-500.0,0.00011137,2]
[355522096,1741236634781,-500.0,0.00011137,2]
[355522098,1741236634792,-500.0,0.00011137,2]
[355522101,1741236634802,-500.0,0.00011137,2]
[355522103,1741236634813,-500.0,0.00011137,2]
[355522105,1741236634823,-504.14863498,0.00011137,2]
[355522107,1741236634833,-500.0,0.00011137,2]
[355522109,1741236634844,-500.0,0.00011137,2]
[355522111,1741236634856,-500.0,0.00011137,2]
[355522113,1741236634866,-500.0,0.00011137,2]
[355522116,1741236634877,-500.0,0.00011137,2]
[355522118,1741236634888,-500.0,0.00011137,2]
[355522120,1741236634900,-500.0,0.00011137,2]
[355522122,1741236634911,-500.0,0.00011137,2]
[355522124,1741236634922,-500.0,0.00011137,2]
[355522127,1741236634934,-500.0,0.00011137,2]
[355522129,1741236634945,-500.0,0.00011137,2]
[355522131,1741236634957,-502.3590819,0.00011137,2]
[355522133,1741236634968,-500.0,0.00011137,2]
[355522136,1741236634979,-500.0,0.00011137,2]
[355522138,1741236634991,-500.0,0.00011137,2]
[355522140,1741236635002,-500.0,0.00011137,2]
[355522142,1741236635014,-500.0,0.00011137,2]
[355522144,1741236635025,-503.18854495,0.00011137,2]
[355522147,1741236635036,-500.0,0.00011137,2]
[355522149,1741236635047,-500.0,0.00011137,2]
[355522151,1741236635059,-500.0,0.00011137,2]
[355522153,1741236635069,-500.0,0.00011137,2]
[355522156,1741236635081,-500.0,0.00011137,2]
[355522158,1741236635092,-504.4684004,0.00011137,2]